[Event "Titled Tuesday Blitz July 11 Early 2023"]
[White "Kvaloy, Aksel Bu"]
[Black "Yurovskykh, Oleksandr"]
[WhiteFideId "1528815"]
[BlackFideId "14134020"]
[WhiteElo "2670"]
[BlackElo "2533"]
[Result "0-1"]
[Round "7"]
[TimeControl "180+2"]
[Date "2023.07.11"]
[WhiteClock "0:00:25"]
[BlackClock "0:00:28"]
[Board "62"]

1. e4 {[%clk 0:02:58]}  e6 {[%clk 0:02:54]} 2. d4 {[%clk 0:02:58]}  d5 {[%clk 0:02:54]} 3. Nc3 {[%clk 0:02:58]}  dxe4 {[%clk 0:02:55]} 4. Nxe4 {[%clk 0:02:58]}  Bd7 {[%clk 0:02:55]} 5. Nf3 {[%clk 0:02:56]}  Bc6 {[%clk 0:02:55]} 6. Ng3 {[%clk 0:02:56]}  Nd7 {[%clk 0:02:55]} 7. Bd3 {[%clk 0:02:56]}  Ngf6 {[%clk 0:02:56]} 8. O-O {[%clk 0:02:56]}  g6 {[%clk 0:02:55]} 9. b3 {[%clk 0:02:56]}  Bg7 {[%clk 0:02:55]} 10. Ba3 {[%clk 0:02:55]}  Bf8 {[%clk 0:02:55]} 11. Bxf8 {[%clk 0:02:51]}  Kxf8 {[%clk 0:02:56]} 12. c4 {[%clk 0:02:49]}  Kg7 {[%clk 0:02:55]} 13. Qe2 {[%clk 0:02:49]}  Bxf3 {[%clk 0:02:50]} 14. Qxf3 {[%clk 0:02:49]}  c6 {[%clk 0:02:51]} 15. Ne4 {[%clk 0:02:47]}  Nxe4 {[%clk 0:02:49]} 16. Qxe4 {[%clk 0:02:48]}  Nf6 {[%clk 0:02:48]} 17. Qe5 {[%clk 0:02:48]}  Qb8 {[%clk 0:02:40]} 18. Qe3 {[%clk 0:02:45]}  Rd8 {[%clk 0:02:38]} 19. Rad1 {[%clk 0:02:46]}  Qc7 {[%clk 0:02:36]} 20. Be2 {[%clk 0:02:39]}  Rd6 {[%clk 0:02:30]} 21. Qe5 {[%clk 0:02:37]}  Rad8 {[%clk 0:02:28]} 22. g4 {[%clk 0:02:36]}  R6d7 {[%clk 0:02:23]} 23. Qe3 {[%clk 0:02:28]}  h6 {[%clk 0:02:22]} 24. h4 {[%clk 0:02:28]}  Qa5 {[%clk 0:02:17]} 25. g5 {[%clk 0:02:26]}  hxg5 {[%clk 0:02:17]} 26. hxg5 {[%clk 0:02:26]}  Ng8 {[%clk 0:02:15]} 27. Qe5+ {[%clk 0:02:09]}  Qxe5 {[%clk 0:02:13]} 28. dxe5 {[%clk 0:02:10]}  Ne7 {[%clk 0:01:54]} 29. Rxd7 {[%clk 0:02:05]}  Rxd7 {[%clk 0:01:54]} 30. Rd1 {[%clk 0:02:06]}  Rxd1+ {[%clk 0:01:46]} 31. Bxd1 {[%clk 0:02:07]}  Nf5 {[%clk 0:01:47]} 32. f4 {[%clk 0:02:05]}  Ne3 {[%clk 0:01:40]} 33. Bf3 {[%clk 0:02:04]}  a5 {[%clk 0:01:32]} 34. Kf2 {[%clk 0:02:01]}  Nc2 {[%clk 0:01:33]} 35. Be4 {[%clk 0:02:00]}  Nb4 {[%clk 0:01:28]} 36. a3 {[%clk 0:01:57]}  Na6 {[%clk 0:01:27]} 37. Ke3 {[%clk 0:01:54]}  Kf8 {[%clk 0:01:27]} 38. Kd4 {[%clk 0:01:52]}  Ke7 {[%clk 0:01:26]} 39. Kc3 {[%clk 0:01:52]}  Kd8 {[%clk 0:01:21]} 40. b4 {[%clk 0:01:52]}  axb4+ {[%clk 0:01:20]} 41. axb4 {[%clk 0:01:52]}  Kc7 {[%clk 0:01:20]} 42. c5 {[%clk 0:01:09]}  b5 {[%clk 0:01:12]} 43. cxb6+ {[%clk 0:00:54]}  Kxb6 {[%clk 0:01:12]} 44. f5 {[%clk 0:00:40]}  exf5 {[%clk 0:01:07]} 45. Bxf5 {[%clk 0:00:40]}  gxf5 {[%clk 0:00:55]} 46. e6 {[%clk 0:00:40]}  fxe6 {[%clk 0:00:54]} 47. g6 {[%clk 0:00:39]}  Nc7 {[%clk 0:00:51]} 48. g7 {[%clk 0:00:38]}  Nd5+ {[%clk 0:00:45]} 49. Kd4 {[%clk 0:00:35]}  Ne7 {[%clk 0:00:41]} 50. Ke5 {[%clk 0:00:35]}  Ng8 {[%clk 0:00:24]} 51. Kxe6 {[%clk 0:00:33]}  f4 {[%clk 0:00:25]} 52. Kf7 {[%clk 0:00:33]}  f3 {[%clk 0:00:24]} 53. Kxg8 {[%clk 0:00:33]}  f2 {[%clk 0:00:25]} 54. Kh8 {[%clk 0:00:20]}  f1=Q {[%clk 0:00:24]} 55. g8=Q {[%clk 0:00:21]}  Qh3+ {[%clk 0:00:23]} 56. Kg7 {[%clk 0:00:21]}  Qg3+ {[%clk 0:00:23]} 57. Kf7 {[%clk 0:00:22]}  Qxg8+ {[%clk 0:00:24]} 58. Kxg8 {[%clk 0:00:23]}  Kb5 {[%clk 0:00:25]} 59. Kf7 {[%clk 0:00:24]}  Kxb4 {[%clk 0:00:25]} 60. Ke6 {[%clk 0:00:25]}  c5 {[%clk 0:00:26]} 61. Kd5 {[%clk 0:00:26]}  c4 {[%clk 0:00:27]} 62. Kd4 {[%clk 0:00:26]}  c3 {[%clk 0:00:27]} 63. Kd3 {[%clk 0:00:25]}  Kb3 {[%clk 0:00:28]} 0-1


[Site "https://www.chess.com"]

[Event "Titled Tuesday Blitz July 11 Early 2023"]
[White "Fantinel, Thibault"]
[Black "Korelskiy, Egor"]
[WhiteFideId "663395"]
[BlackFideId "34329064"]
[WhiteElo "2659"]
[BlackElo "2530"]
[Result "1/2-1/2"]
[Round "7"]
[TimeControl "180+2"]
[Date "2023.07.11"]
[WhiteClock "0:00:07"]
[BlackClock "0:00:31"]
[Board "63"]

1. d4 {[%clk 0:03:00]}  d5 {[%clk 0:02:55]} 2. Nf3 {[%clk 0:03:01]}  e6 {[%clk 0:02:55]} 3. Bf4 {[%clk 0:03:01]}  Nf6 {[%clk 0:02:55]} 4. Nbd2 {[%clk 0:03:01]}  c5 {[%clk 0:02:55]} 5. e3 {[%clk 0:03:01]}  Nc6 {[%clk 0:02:55]} 6. c3 {[%clk 0:03:00]}  Bd6 {[%clk 0:02:55]} 7. Bg3 {[%clk 0:03:01]}  Qe7 {[%clk 0:02:55]} 8. Bb5 {[%clk 0:02:58]}  O-O {[%clk 0:02:54]} 9. O-O {[%clk 0:02:52]}  Bd7 {[%clk 0:02:53]} 10. Bxc6 {[%clk 0:02:51]}  Bxc6 {[%clk 0:02:53]} 11. Ne5 {[%clk 0:02:51]}  Nd7 {[%clk 0:02:52]} 12. Nxc6 {[%clk 0:02:41]}  bxc6 {[%clk 0:02:51]} 13. Qa4 {[%clk 0:02:41]}  Bxg3 {[%clk 0:02:50]} 14. hxg3 {[%clk 0:02:40]}  Qd6 {[%clk 0:02:51]} 15. Nf3 {[%clk 0:02:37]}  Rfb8 {[%clk 0:02:49]} 16. Qa3 {[%clk 0:02:37]}  Qf8 {[%clk 0:02:40]} 17. Rac1 {[%clk 0:02:34]}  c4 {[%clk 0:02:36]} 18. Qxf8+ {[%clk 0:02:32]}  Kxf8 {[%clk 0:02:37]} 19. Rc2 {[%clk 0:02:33]}  Rb5 {[%clk 0:02:36]} 20. Nd2 {[%clk 0:02:33]}  Rab8 {[%clk 0:02:36]} 21. b3 {[%clk 0:02:34]}  Nb6 {[%clk 0:02:34]} 22. Rfc1 {[%clk 0:02:16]}  a5 {[%clk 0:02:32]} 23. g4 {[%clk 0:01:48]}  Ke7 {[%clk 0:02:13]} 24. g3 {[%clk 0:01:46]}  Kd6 {[%clk 0:02:02]} 25. Kg2 {[%clk 0:01:25]}  h6 {[%clk 0:02:00]} 26. f4 {[%clk 0:01:19]}  c5 {[%clk 0:01:59]} 27. Kf3 {[%clk 0:01:16]}  cxb3 {[%clk 0:01:55]} 28. axb3 {[%clk 0:00:49]}  a4 {[%clk 0:01:46]} 29. bxa4 {[%clk 0:00:46]}  Nxa4 {[%clk 0:01:47]} 30. c4 {[%clk 0:00:47]}  Rb2 {[%clk 0:01:36]} 31. cxd5 {[%clk 0:00:43]}  Rxc2 {[%clk 0:01:34]} 32. Rxc2 {[%clk 0:00:44]}  exd5 {[%clk 0:01:34]} 33. dxc5+ {[%clk 0:00:42]}  Nxc5 {[%clk 0:01:35]} 34. Ra2 {[%clk 0:00:41]}  Rb7 {[%clk 0:01:32]} 35. e4 {[%clk 0:00:36]}  f6 {[%clk 0:01:17]} 36. Ra5 {[%clk 0:00:30]}  Rb2 {[%clk 0:01:06]} 37. e5+ {[%clk 0:00:27]}  fxe5 {[%clk 0:01:04]} 38. fxe5+ {[%clk 0:00:28]}  Kxe5 {[%clk 0:01:04]} 39. Rxc5 {[%clk 0:00:25]}  Rxd2 {[%clk 0:01:04]} 40. Rc7 {[%clk 0:00:25]}  g5 {[%clk 0:00:59]} 41. Rc6 {[%clk 0:00:21]}  Rh2 {[%clk 0:00:58]} 42. Rc8 {[%clk 0:00:18]}  Kd4 {[%clk 0:00:57]} 43. Rc7 {[%clk 0:00:15]}  Rh1 {[%clk 0:00:51]} 44. Rc6 {[%clk 0:00:14]}  Kd3 {[%clk 0:00:49]} 45. Kg2 {[%clk 0:00:14]}  Re1 {[%clk 0:00:49]} 46. Kf2 {[%clk 0:00:13]}  Re5 {[%clk 0:00:48]} 47. Rxh6 {[%clk 0:00:12]}  d4 {[%clk 0:00:48]} 48. Rf6 {[%clk 0:00:11]}  Kd2 {[%clk 0:00:47]} 49. Rf5 {[%clk 0:00:10]}  Re2+ {[%clk 0:00:46]} 50. Kf3 {[%clk 0:00:09]}  d3 {[%clk 0:00:46]} 51. Rxg5 {[%clk 0:00:10]}  Ke1 {[%clk 0:00:46]} 52. Rd5 {[%clk 0:00:07]}  d2 {[%clk 0:00:46]} 53. g5 {[%clk 0:00:08]}  d1=Q {[%clk 0:00:32]} 54. Rxd1+ {[%clk 0:00:09]}  Kxd1 {[%clk 0:00:33]} 55. Kf4 {[%clk 0:00:10]}  Rf2+ {[%clk 0:00:32]} 56. Ke5 {[%clk 0:00:10]}  Ke2 {[%clk 0:00:31]} 57. g6 {[%clk 0:00:10]}  Rf3 {[%clk 0:00:31]} 58. g4 {[%clk 0:00:10]}  Rg3 {[%clk 0:00:31]} 59. Kf4 {[%clk 0:00:10]}  Rf3+ {[%clk 0:00:31]} 60. Ke5 {[%clk 0:00:11]}  Rg3 {[%clk 0:00:31]} 61. Kf4 {[%clk 0:00:07]}  Rf3+ {[%clk 0:00:31]} 62. Ke5 {[%clk 0:00:07]} 1/2-1/2


[Site "https://www.chess.com"]

[Event "Titled Tuesday Blitz July 11 Early 2023"]
[White "Oleksiyenko, Mykhaylo"]
[Black "Hajiyev, Kanan"]
[WhiteFideId "4152417"]
[BlackFideId "13404148"]
[WhiteElo "2652"]
[BlackElo "2530"]
[Result "0-1"]
[Round "7"]
[TimeControl "180+2"]
[Date "2023.07.11"]
[WhiteClock "0:00:38"]
[BlackClock "0:01:11"]
[Board "64"]

1. e4 {[%clk 0:03:00]}  c6 {[%clk 0:02:52]} 2. Nf3 {[%clk 0:02:57]}  d5 {[%clk 0:02:53]} 3. Nc3 {[%clk 0:02:58]}  a6 {[%clk 0:02:52]} 4. d4 {[%clk 0:02:53]}  Bg4 {[%clk 0:02:51]} 5. h3 {[%clk 0:02:52]}  Bh5 {[%clk 0:02:50]} 6. exd5 {[%clk 0:02:51]}  cxd5 {[%clk 0:02:51]} 7. g4 {[%clk 0:02:51]}  Bg6 {[%clk 0:02:52]} 8. Ne5 {[%clk 0:02:51]}  Nc6 {[%clk 0:02:52]} 9. Nxg6 {[%clk 0:02:05]}  hxg6 {[%clk 0:02:52]} 10. Be3 {[%clk 0:02:05]}  e6 {[%clk 0:02:52]} 11. Qd2 {[%clk 0:02:02]}  Bb4 {[%clk 0:02:49]} 12. a3 {[%clk 0:02:01]}  Ba5 {[%clk 0:02:44]} 13. Bg2 {[%clk 0:01:42]}  Nf6 {[%clk 0:02:40]} 14. Qd3 {[%clk 0:01:40]}  Rc8 {[%clk 0:02:38]} 15. O-O {[%clk 0:01:29]}  Qd6 {[%clk 0:02:13]} 16. Rfd1 {[%clk 0:01:19]}  Bc7 {[%clk 0:02:08]} 17. Ne2 {[%clk 0:01:15]}  Qh2+ {[%clk 0:02:06]} 18. Kf1 {[%clk 0:01:16]}  Rxh3 {[%clk 0:02:02]} 19. Bxh3 {[%clk 0:01:15]}  Qxh3+ {[%clk 0:01:59]} 20. Ke1 {[%clk 0:01:15]}  Ne4 {[%clk 0:01:43]} 21. Ng1 {[%clk 0:00:57]}  Qxg4 {[%clk 0:01:30]} 22. Qf1 {[%clk 0:00:55]}  f5 {[%clk 0:01:18]} 23. c3 {[%clk 0:00:48]}  Kf7 {[%clk 0:01:16]} 24. f3 {[%clk 0:00:46]}  Qh4+ {[%clk 0:01:11]} 25. Bf2 {[%clk 0:00:38]}  Nxf2 {[%clk 0:01:11]} 0-1


[Site "https://www.chess.com"]

[Event "Titled Tuesday Blitz July 11 Early 2023"]
[White "Shvedova, Alexandra"]
[Black "Koshulyan, Egor A."]
[WhiteFideId "54154782"]
[BlackFideId "24237000"]
[WhiteElo "2523"]
[BlackElo "2644"]
[Result "1-0"]
[Round "7"]
[TimeControl "180+2"]
[Date "2023.07.11"]
[WhiteClock "0:01:48"]
[BlackClock "0:00:22"]
[Board "66"]

1. e4 {[%clk 0:03:00]}  c5 {[%clk 0:02:59]} 2. Ne2 {[%clk 0:03:00]}  Nc6 {[%clk 0:02:56]} 3. d4 {[%clk 0:02:59]}  cxd4 {[%clk 0:02:57]} 4. Nxd4 {[%clk 0:03:00]}  Nf6 {[%clk 0:02:57]} 5. Nc3 {[%clk 0:03:00]}  e5 {[%clk 0:02:56]} 6. Ndb5 {[%clk 0:03:00]}  d6 {[%clk 0:02:56]} 7. Bg5 {[%clk 0:03:01]}  a6 {[%clk 0:02:56]} 8. Na3 {[%clk 0:03:02]}  Be6 {[%clk 0:02:56]} 9. Nc4 {[%clk 0:02:56]}  Rb8 {[%clk 0:02:56]} 10. g3 {[%clk 0:02:55]}  Nd4 {[%clk 0:02:53]} 11. Ne3 {[%clk 0:02:47]}  Be7 {[%clk 0:02:52]} 12. Bxf6 {[%clk 0:02:41]}  Bxf6 {[%clk 0:02:53]} 13. Bg2 {[%clk 0:02:40]}  O-O {[%clk 0:02:51]} 14. O-O {[%clk 0:02:40]}  Nc6 {[%clk 0:02:31]} 15. Ncd5 {[%clk 0:02:38]}  Bg5 {[%clk 0:02:31]} 16. c3 {[%clk 0:02:38]}  Kh8 {[%clk 0:02:31]} 17. h4 {[%clk 0:02:35]}  Bh6 {[%clk 0:02:31]} 18. a4 {[%clk 0:02:30]}  Ne7 {[%clk 0:02:31]} 19. a5 {[%clk 0:02:25]}  Nxd5 {[%clk 0:01:46]} 20. Nxd5 {[%clk 0:02:26]}  f5 {[%clk 0:01:46]} 21. Qd3 {[%clk 0:02:17]}  f4 {[%clk 0:01:46]} 22. Rfd1 {[%clk 0:02:09]}  Qd7 {[%clk 0:01:42]} 23. Nb6 {[%clk 0:01:57]}  Qf7 {[%clk 0:01:42]} 24. Qxd6 {[%clk 0:01:55]}  fxg3 {[%clk 0:01:02]} 25. fxg3 {[%clk 0:01:56]}  Qf2+ {[%clk 0:00:33]} 26. Kh2 {[%clk 0:01:55]}  Bg4 {[%clk 0:00:29]} 27. Rf1 {[%clk 0:01:51]}  Qxf1 {[%clk 0:00:21]} 28. Rxf1 {[%clk 0:01:48]}  Rfd8 {[%clk 0:00:22]} 1-0


[Site "https://www.chess.com"]

[Event "Titled Tuesday Blitz July 11 Early 2023"]
[White "Djokic, Mihailo"]
[Black "Shishkov, Andrei"]
[WhiteFideId "976440"]
[BlackFideId "4500563"]
[WhiteElo "2628"]
[BlackElo "2523"]
[Result "0-1"]
[Round "7"]
[TimeControl "180+2"]
[Date "2023.07.11"]
[WhiteClock "0:00:51"]
[BlackClock "0:00:23"]
[Board "67"]

1. e4 {[%clk 0:03:00]}  d5 {[%clk 0:02:59]} 2. exd5 {[%clk 0:03:00]}  Nf6 {[%clk 0:03:00]} 3. d4 {[%clk 0:02:58]}  Nxd5 {[%clk 0:03:01]} 4. c4 {[%clk 0:02:58]}  Nb6 {[%clk 0:03:01]} 5. Nf3 {[%clk 0:02:57]}  Bg4 {[%clk 0:03:01]} 6. Be2 {[%clk 0:02:54]}  Nc6 {[%clk 0:02:58]} 7. d5 {[%clk 0:02:53]}  Bxf3 {[%clk 0:02:58]} 8. Bxf3 {[%clk 0:02:53]}  Ne5 {[%clk 0:02:58]} 9. b3 {[%clk 0:02:51]}  e6 {[%clk 0:02:55]} 10. dxe6 {[%clk 0:02:45]}  Qxd1+ {[%clk 0:02:53]} 11. Bxd1 {[%clk 0:02:43]}  Nd3+ {[%clk 0:02:39]} 12. Kd2 {[%clk 0:02:42]}  O-O-O {[%clk 0:02:39]} 13. Kc2 {[%clk 0:02:19]}  Nxf2 {[%clk 0:02:07]} 14. Rf1 {[%clk 0:02:17]}  Nxd1 {[%clk 0:02:07]} 15. exf7 {[%clk 0:02:16]}  Bc5 {[%clk 0:01:48]} 16. Rxd1 {[%clk 0:02:14]}  Rxd1 {[%clk 0:01:47]} 17. Kxd1 {[%clk 0:02:12]}  Bd4 {[%clk 0:01:47]} 18. Ba3 {[%clk 0:02:08]}  Nd7 {[%clk 0:01:43]} 19. Nc3 {[%clk 0:02:01]}  Bxc3 {[%clk 0:01:43]} 20. Rc1 {[%clk 0:02:01]}  Bd4 {[%clk 0:01:38]} 21. Kc2 {[%clk 0:01:56]}  c5 {[%clk 0:01:37]} 22. Rf1 {[%clk 0:01:52]}  Rf8 {[%clk 0:01:36]} 23. b4 {[%clk 0:01:39]}  b6 {[%clk 0:01:35]} 24. bxc5 {[%clk 0:01:37]}  bxc5 {[%clk 0:01:33]} 25. Rf5 {[%clk 0:01:36]}  Kd8 {[%clk 0:01:24]} 26. h4 {[%clk 0:01:32]}  Ke7 {[%clk 0:01:23]} 27. Rf4 {[%clk 0:01:30]}  Bf6 {[%clk 0:01:14]} 28. Rf5 {[%clk 0:01:29]}  Bxh4 {[%clk 0:01:04]} 29. Bxc5+ {[%clk 0:01:27]}  Nxc5 {[%clk 0:01:03]} 30. Rxc5 {[%clk 0:01:28]}  Rxf7 {[%clk 0:01:02]} 31. Kd3 {[%clk 0:01:21]}  Bf2 {[%clk 0:00:51]} 32. Re5+ {[%clk 0:01:13]}  Kd6 {[%clk 0:00:41]} 33. Rg5 {[%clk 0:01:13]}  g6 {[%clk 0:00:37]} 34. a4 {[%clk 0:01:12]}  Rf5 {[%clk 0:00:33]} 35. Rg4 {[%clk 0:01:12]}  Bc5 {[%clk 0:00:31]} 36. Rh4 {[%clk 0:01:10]}  h5 {[%clk 0:00:30]} 37. Rh3 {[%clk 0:01:00]}  Rg5 {[%clk 0:00:30]} 38. g3 {[%clk 0:00:59]}  Rg4 {[%clk 0:00:30]} 39. Kc3 {[%clk 0:00:58]}  a5 {[%clk 0:00:29]} 40. Kd3 {[%clk 0:00:56]}  Bb4 {[%clk 0:00:27]} 41. Rh1 {[%clk 0:00:53]}  Rxg3+ {[%clk 0:00:27]} 42. Ke4 {[%clk 0:00:54]}  Rg4+ {[%clk 0:00:27]} 43. Kd3 {[%clk 0:00:54]}  Kc5 {[%clk 0:00:27]} 44. Rf1 {[%clk 0:00:52]}  Rg3+ {[%clk 0:00:23]} 45. Ke4 {[%clk 0:00:52]}  Kxc4 {[%clk 0:00:23]} 46. Rf6 {[%clk 0:00:51]}  Kb3 {[%clk 0:00:23]} 0-1


[Site "https://www.chess.com"]

[Event "Titled Tuesday Blitz July 11 Early 2023"]
[White "brm72"]
[Black "HamedWafa4"]
[WhiteElo "2522"]
[BlackElo "2619"]
[Result "1-0"]
[Round "7"]
[TimeControl "180+2"]
[Date "2023.07.11"]
[WhiteClock "0:00:27"]
[BlackClock "0:00:03"]
[Board "68"]

1. e4 {[%clk 0:03:00]}  e5 {[%clk 0:02:58]} 2. Nf3 {[%clk 0:02:57]}  Nc6 {[%clk 0:02:58]} 3. d4 {[%clk 0:02:58]}  exd4 {[%clk 0:02:58]} 4. Nxd4 {[%clk 0:02:59]}  Bc5 {[%clk 0:02:56]} 5. Nb3 {[%clk 0:02:58]}  Bb6 {[%clk 0:02:56]} 6. Qe2 {[%clk 0:02:59]}  Nge7 {[%clk 0:02:52]} 7. Nc3 {[%clk 0:02:58]}  O-O {[%clk 0:02:51]} 8. Be3 {[%clk 0:02:58]}  f5 {[%clk 0:02:49]} 9. O-O-O {[%clk 0:02:53]}  f4 {[%clk 0:02:48]} 10. Bxb6 {[%clk 0:02:52]}  axb6 {[%clk 0:02:49]} 11. Kb1 {[%clk 0:02:47]}  Ne5 {[%clk 0:02:48]} 12. f3 {[%clk 0:02:42]}  N7c6 {[%clk 0:02:47]} 13. Qd2 {[%clk 0:02:39]}  d6 {[%clk 0:02:44]} 14. Nd5 {[%clk 0:02:39]}  Ng6 {[%clk 0:02:39]} 15. h4 {[%clk 0:02:40]}  h5 {[%clk 0:02:30]} 16. Bc4 {[%clk 0:02:39]}  Kh8 {[%clk 0:02:25]} 17. Nd4 {[%clk 0:02:39]}  Nxd4 {[%clk 0:02:18]} 18. Qxd4 {[%clk 0:02:40]}  Ne5 {[%clk 0:02:17]} 19. Bb3 {[%clk 0:02:39]}  Be6 {[%clk 0:02:10]} 20. Nxc7 {[%clk 0:02:18]}  Qxc7 {[%clk 0:01:50]} 21. Bxe6 {[%clk 0:02:18]}  Rfd8 {[%clk 0:01:49]} 22. Qd2 {[%clk 0:02:06]}  Qe7 {[%clk 0:01:43]} 23. Bd5 {[%clk 0:02:05]}  Qf6 {[%clk 0:01:42]} 24. Bxb7 {[%clk 0:02:03]}  Ra4 {[%clk 0:01:36]} 25. Bd5 {[%clk 0:02:02]}  b5 {[%clk 0:01:33]} 26. Qc3 {[%clk 0:02:00]}  Ra7 {[%clk 0:01:12]} 27. Qb3 {[%clk 0:01:47]}  Rc7 {[%clk 0:01:07]} 28. Qxb5 {[%clk 0:01:41]}  Rcc8 {[%clk 0:01:07]} 29. b3 {[%clk 0:01:38]}  Rb8 {[%clk 0:01:05]} 30. Qa4 {[%clk 0:01:37]}  Rdc8 {[%clk 0:01:04]} 31. Qd4 {[%clk 0:01:37]}  Qg6 {[%clk 0:00:59]} 32. Rd2 {[%clk 0:01:35]}  Qe8 {[%clk 0:00:55]} 33. Kb2 {[%clk 0:01:34]}  Qb5 {[%clk 0:00:54]} 34. a4 {[%clk 0:01:31]}  Qa5 {[%clk 0:00:51]} 35. Be6 {[%clk 0:01:24]}  Rc6 {[%clk 0:00:44]} 36. Ra1 {[%clk 0:01:02]}  Rb4 {[%clk 0:00:36]} 37. Qd5 {[%clk 0:01:01]}  Qa6 {[%clk 0:00:27]} 38. Ka3 {[%clk 0:00:51]}  Qb7 {[%clk 0:00:13]} 39. Bf5 {[%clk 0:00:37]}  Qb6 {[%clk 0:00:07]} 40. a5 {[%clk 0:00:31]}  Qb7 {[%clk 0:00:08]} 41. Qxe5 {[%clk 0:00:29]}  Rb5 {[%clk 0:00:03]} 42. Qe8# {[%clk 0:00:27]} 1-0


[Site "https://www.chess.com"]

[Event "Titled Tuesday Blitz July 11 Early 2023"]
[White "Borgaonkar Akshay"]
[Black "Santos Flores, Alberto"]
[WhiteFideId "25639110"]
[BlackFideId "3601234"]
[WhiteElo "2608"]
[BlackElo "2510"]
[Result "1/2-1/2"]
[Round "7"]
[TimeControl "180+2"]
[Date "2023.07.11"]
[WhiteClock "0:00:03"]
[BlackClock "0:00:28"]
[Board "70"]

1. Nf3 {[%clk 0:03:00]}  d5 {[%clk 0:02:58]} 2. b3 {[%clk 0:03:00]}  Bf5 {[%clk 0:02:55]} 3. Ba3 {[%clk 0:02:58]}  Nd7 {[%clk 0:02:53]} 4. e3 {[%clk 0:02:57]}  a5 {[%clk 0:02:50]} 5. d4 {[%clk 0:02:56]}  a4 {[%clk 0:02:48]} 6. Nbd2 {[%clk 0:02:54]}  Ngf6 {[%clk 0:02:47]} 7. Ne5 {[%clk 0:02:51]}  e6 {[%clk 0:02:41]} 8. Bxf8 {[%clk 0:02:49]}  Kxf8 {[%clk 0:02:38]} 9. Nxd7+ {[%clk 0:02:42]}  Qxd7 {[%clk 0:02:36]} 10. c4 {[%clk 0:02:43]}  c6 {[%clk 0:02:31]} 11. Be2 {[%clk 0:02:41]}  Ne4 {[%clk 0:02:30]} 12. Nxe4 {[%clk 0:02:41]}  Bxe4 {[%clk 0:02:31]} 13. f3 {[%clk 0:02:41]}  Bg6 {[%clk 0:02:28]} 14. O-O {[%clk 0:02:42]}  h6 {[%clk 0:02:22]} 15. Bd3 {[%clk 0:02:41]}  Bxd3 {[%clk 0:02:20]} 16. Qxd3 {[%clk 0:02:42]}  g6 {[%clk 0:02:20]} 17. e4 {[%clk 0:02:42]}  Kg7 {[%clk 0:02:18]} 18. e5 {[%clk 0:02:32]}  axb3 {[%clk 0:02:15]} 19. axb3 {[%clk 0:02:31]}  Rxa1 {[%clk 0:02:13]} 20. Rxa1 {[%clk 0:02:30]}  dxc4 {[%clk 0:02:14]} 21. bxc4 {[%clk 0:02:28]}  Rd8 {[%clk 0:02:14]} 22. Rd1 {[%clk 0:02:25]}  b5 {[%clk 0:02:14]} 23. cxb5 {[%clk 0:02:19]}  cxb5 {[%clk 0:02:14]} 24. Qc3 {[%clk 0:02:18]}  Rc8 {[%clk 0:02:07]} 25. Qb2 {[%clk 0:02:17]}  Rc4 {[%clk 0:02:01]} 26. d5 {[%clk 0:02:16]}  Qa7+ {[%clk 0:01:57]} 27. Kh1 {[%clk 0:02:15]}  Qa4 {[%clk 0:01:33]} 28. Ra1 {[%clk 0:02:10]}  Rc2 {[%clk 0:01:28]} 29. Qb1 {[%clk 0:01:55]}  Qc4 {[%clk 0:01:27]} 30. dxe6 {[%clk 0:01:55]}  fxe6 {[%clk 0:01:24]} 31. Qg1 {[%clk 0:01:53]}  g5 {[%clk 0:01:15]} 32. h3 {[%clk 0:01:40]}  b4 {[%clk 0:01:11]} 33. f4 {[%clk 0:00:52]}  gxf4 {[%clk 0:01:00]} 34. Qa7+ {[%clk 0:00:45]}  Kg6 {[%clk 0:00:59]} 35. Qe7 {[%clk 0:00:43]}  Rc1+ {[%clk 0:00:57]} 36. Rxc1 {[%clk 0:00:42]}  Qxc1+ {[%clk 0:00:58]} 37. Kh2 {[%clk 0:00:43]}  Qc4 {[%clk 0:00:35]} 38. Qf6+ {[%clk 0:00:26]}  Kh7 {[%clk 0:00:31]} 39. Qf7+ {[%clk 0:00:26]}  Kh8 {[%clk 0:00:31]} 40. Qf8+ {[%clk 0:00:26]}  Kh7 {[%clk 0:00:32]} 41. Qf7+ {[%clk 0:00:26]}  Kh8 {[%clk 0:00:32]} 42. h4 {[%clk 0:00:24]}  b3 {[%clk 0:00:28]} 43. Qf8+ {[%clk 0:00:18]}  Kh7 {[%clk 0:00:28]} 44. Qf7+ {[%clk 0:00:14]}  Kh8 {[%clk 0:00:28]} 45. Qf8+ {[%clk 0:00:05]}  Kh7 {[%clk 0:00:28]} 46. Qf7+ {[%clk 0:00:03]}  Kh8 {[%clk 0:00:28]} 1/2-1/2


[Site "https://www.chess.com"]

[Event "Titled Tuesday Blitz July 11 Early 2023"]
[White "Shukhman, Anna"]
[Black "Mihailidis, Anastasios"]
[WhiteFideId "54180058"]
[BlackFideId "4205588"]
[WhiteElo "2601"]
[BlackElo "2483"]
[Result "0-1"]
[Round "7"]
[TimeControl "180+2"]
[Date "2023.07.11"]
[WhiteClock "0:01:26"]
[BlackClock "0:00:45"]
[Board "71"]

1. e4 {[%clk 0:03:00]}  c5 {[%clk 0:02:54]} 2. Nf3 {[%clk 0:03:00]}  d6 {[%clk 0:02:54]} 3. d4 {[%clk 0:02:59]}  cxd4 {[%clk 0:02:55]} 4. Nxd4 {[%clk 0:02:59]}  Nf6 {[%clk 0:02:55]} 5. Nc3 {[%clk 0:02:59]}  g6 {[%clk 0:02:56]} 6. Be3 {[%clk 0:02:58]}  Bg7 {[%clk 0:02:56]} 7. f3 {[%clk 0:02:58]}  O-O {[%clk 0:02:57]} 8. Qd2 {[%clk 0:02:58]}  Nc6 {[%clk 0:02:57]} 9. g4 {[%clk 0:02:58]}  h5 {[%clk 0:02:55]} 10. g5 {[%clk 0:02:56]}  Ne8 {[%clk 0:02:54]} 11. O-O-O {[%clk 0:02:56]}  Nc7 {[%clk 0:02:54]} 12. f4 {[%clk 0:02:54]}  d5 {[%clk 0:02:49]} 13. Nxc6 {[%clk 0:02:49]}  bxc6 {[%clk 0:02:49]} 14. f5 {[%clk 0:02:43]}  gxf5 {[%clk 0:02:39]} 15. exf5 {[%clk 0:02:41]}  Bxf5 {[%clk 0:02:38]} 16. Bd3 {[%clk 0:02:36]}  Bg6 {[%clk 0:02:37]} 17. Ne2 {[%clk 0:02:31]}  Rb8 {[%clk 0:02:36]} 18. c3 {[%clk 0:02:30]}  e5 {[%clk 0:02:35]} 19. Kb1 {[%clk 0:02:27]}  a5 {[%clk 0:02:31]} 20. Ng3 {[%clk 0:02:26]}  Ne6 {[%clk 0:02:21]} 21. Ka1 {[%clk 0:02:13]}  a4 {[%clk 0:02:16]} 22. a3 {[%clk 0:02:12]}  e4 {[%clk 0:02:05]} 23. Be2 {[%clk 0:02:10]}  d4 {[%clk 0:01:17]} 24. cxd4 {[%clk 0:02:08]}  c5 {[%clk 0:01:13]} 25. d5 {[%clk 0:01:44]}  Rxb2 {[%clk 0:01:06]} 26. Qxb2 {[%clk 0:01:44]}  Bxb2+ {[%clk 0:01:05]} 27. Kxb2 {[%clk 0:01:43]}  Qb8+ {[%clk 0:00:57]} 28. Kc2 {[%clk 0:01:39]}  Nd4+ {[%clk 0:00:53]} 29. Bxd4 {[%clk 0:01:35]}  cxd4 {[%clk 0:00:52]} 30. Rxd4 {[%clk 0:01:34]}  Rc8+ {[%clk 0:00:51]} 31. Kd2 {[%clk 0:01:32]}  Qb2+ {[%clk 0:00:49]} 32. Ke3 {[%clk 0:01:32]}  Qc3+ {[%clk 0:00:47]} 33. Bd3 {[%clk 0:01:32]}  exd3 {[%clk 0:00:46]} 34. Rxa4 {[%clk 0:01:30]}  d2+ {[%clk 0:00:46]} 35. Ke2 {[%clk 0:01:26]}  Re8+ {[%clk 0:00:45]} 0-1


[Site "https://www.chess.com"]